Cogmind - Beta 9.6 @@@ ROGUE MODE // 2020.06.12 @ 09:42:16 Player: Demise Result: Destroyed by G-34 Mercenary with Small Laser Performance ------------- Evolutions (0) 0 Regions Visited (1) 200 Robots Destroyed (28) 140 Value Destroyed (587) 587 Prototype IDs (2) 40 Alien Tech Used (0) 0 Bonus (0) 0 TOTAL SCORE: 967 Bonus ------- None Cogmind --------- Core Integrity 0/250 Matter 300/300 Energy 100/100 System Corruption 3% Temperature Cool (6) Movement Treading (220) Ox3 Location -10/Materials Parts ------- > --- POWER (1) -------- (None) > --- PROPULSION (2) --- Light Treads Wheel > --- UTILITY (2) ------ High-capacity Storage Unit High-capacity Storage Unit > --- WEAPON (2) ------- (None) > --- INVENTORY (20) --- Wheel Large Storage Unit Large Storage Unit Large Storage Unit Large Storage Unit High-capacity Battery (400) Large Matter Pod (150) Sensor Array Signal Interpreter Signal Interpreter Improved Terrain Scanner Seismic Analyzer Medium Armor Plating Medium Armor Plating Medium Armor Plating Grenade Launcher Mining Laser Peak State ------------ > --- POWER ------------ Ion Engine > --- PROPULSION ------- Light Treads Wheel > --- UTILITY ---------- Large Storage Unit Large Storage Unit > --- WEAPON ----------- Particle Gun Light Assault Rifle > --- INVENTORY -------- Ion Engine Wheel Wheel Medium Storage Unit Large Storage Unit Large Storage Unit High-capacity Battery Large Matter Pod Sensor Array Improved Terrain Scanner Seismic Analyzer Medium Armor Plating Medium Armor Plating Medium Armor Plating Grenade Launcher Mining Laser [Rating: 10] Favorites ----------- Power Ion Engine Engine Ion Engine Propulsion Wheel Treads Light Treads Leg Aluminum Leg Wheel Wheel Utility Large Storage Unit Device Improved Terrain Scanner Storage Large Storage Unit Weapon Light Assault Rifle Energy Gun Particle Gun Ballistic Gun Light Assault Rifle Build | -11 -10 ------- Run | Scr Mat Slots Evolved . | . . Power . | . . Propulsion . | . . Utility . | . . Weapon . | . . Parts Attached 24 | 7 17 Power 3 | . 3 Engine 3 | . 3 Core . | . . Reactor . | . . Propulsion 12 | 6 6 Treads 2 | . 2 Leg . | . . Wheel 10 | 6 4 Hover . | . . Flight . | . . Utility 7 | 1 6 Device 1 | 1 . Storage 6 | . 6 Processor . | . . Hackware . | . . Protection . | . . Artifact . | . . Weapon 2 | . 2 Energy Gun 1 | . 1 Energy Cannon . | . . Ballistic Gun 1 | . 1 Ballistic Cannon . | . . Launcher . | . . Special Weapon . | . . Impact Weapon . | . . Slashing Weapon . | . . Piercing Weapon . | . . Special Melee Weapon . | . . Unidentified Prototypes . | . . Parts Lost 6 | . 6 Power 2 | . 2 Propulsion 1 | . 1 Utility . | . . Weapon 3 | . 3 Highest Loss Streak 2 | . 2 Average Slot Usage (%) 98 | . 98 Engine 13 | . 13 Treads 12 | . 12 Wheel 15 | . 15 Device 3 | . 3 Storage 24 | . 24 Energy Gun 2 | . 2 Ballistic Gun 25 | . 25 Naked Turns . | . . Heaviest Build 73 | 13 73 Greatest Support 26 | 26 20 Greatest Overweight (x) 3 | 3 3 Average Overweight (x) 1 | . 1 Largest Inventory Capacity 20 | 6 20 Average Capacity 13 | 6 14 Most Carried 18 | 6 18 Average Carried 12 | 5 13 Final Capacity 20 | 6 20 Final Carried 17 | 6 17 Class Distribution -------------------- 88% | Mutant 11% | Hauler-Mutant Dominant Class ---------------- Mutant | -10/Materials Resources | -11 -10 ----------- Run | Scr Mat Matter Collected 833 | 326 507 Remotely . | . . Salvage Created 1123 | 202 921 Parts 64 | 12 52 Haulers Intercepted 2 | . 2 Recyclers Shooed 1 | . 1 Parts Field Recycled . | . . Retrieved Matter . | . . Parts Self-Destructed . | . . Prevented . | . . Kills | -11 -10 ------- Run | Scr Mat Combat Hostiles Destroyed 12 | . 12 Melee 1 | . 1 Guns 11 | . 11 Classes Destroyed 6 | 3 3 Worker 2 | 2 . Tunneler 6 | 5 1 Hauler 2 | . 2 Recycler 3 | 1 2 Watcher 3 | . 3 Grunt 12 | . 12 Best Kill Streak 6 | 4 6 Combat Bots Only 2 | . 2 Max Kills in Single Turn 1 | 1 1 Gunslinging . | . . Exploded . | . . Melee 1 | . 1 Uniques/NPCs Destroyed . | . . Combat | -11 -10 -------- Run | Scr Mat Damage Taken 1032 | . 1032 Core 259 | . 259 Absorbed by Shields . | . . Core Remaining (%) 100 | 100 . Volleys Fired 108 | 14 94 Largest 2 | 2 2 Hottest 85 | 40 85 Shots Fired 199 | 28 171 Gun 199 | 28 171 Cannon . | . . Launcher . | . . Special . | . . Kinetic 184 | 28 156 Thermal 15 | . 15 Explosive . | . . Electromagnetic . | . . Robot Hit Streak 12 | 7 12 Robot Miss Streak 4 | 3 4 Penetration Max . | . . Secondary Targets 2 | . 2 Max Gunslinging Chain 1 | . 1 Shots Hit Robots 126 | 18 108 Core Hits 60 | 12 48 Critical Hits 3 | 1 2 Critical Kills 2 | 1 1 Critical Parts Destroyed 1 | . 1 Melee Attacks . | . . Impact . | . . Slashing . | . . Piercing . | . . Sneak Attacks . | . . Combat Hostiles . | . . Follow-up Attacks . | . . Damage Inflicted 1326 | 205 1121 Guns 1314 | 205 1109 Cannons . | . . Explosions . | . . Melee . | . . Ramming 12 | . 12 Kinetic 1097 | 205 892 Thermal 217 | . 217 Explosive . | . . Electromagnetic . | . . Impact . | . . Slashing . | . . Piercing . | . . Highest Corruption 3 | . 3 Average Corruption 2 | . 2 Corruption Purged . | . . Effects 11 | . 11 Message Errors 3 | . 3 Matter Fused 3 | . 3 Energy Discharges 2 | . 2 Data Loss (minor) 1 | . 1 Targeting Errors 1 | . 1 Weapon Failures 1 | . 1 Overload Shots . | . . Overflow Damage . | . . Projectiles . | . . Explosions . | . . Melee . | . . Knockbacks . | . . Impact . | . . Kinetic . | . . Secondary . | . . Self-Inflicted Damage . | . . Shots . | . . Rammed 5 | . 5 Targets Rammed 5 | . 5 Kicked . | . . Crushed . | . . Highest Temperature 247 | . 247 Average Temperature 51 | . 51 Received Heat Transfer 540 | . 540 Siege Activations . | . . Robots Corrupted . | . . Combat Hostiles . | . . Parts Fried . | . . Impact Corruptions . | . . Robots Melted . | . . Combat Hostiles . | . . Parts Melted . | . . Heat Transferred 518 | . 518 Parts Sabotaged . | . . Parts Stolen . | . . Parts Stripped . | . . Power Chain Reactions . | . . Missiles Intercepted . | . . Alert | -11 -10 ------- Run | Scr Mat Peak Influence 203 | 40 203 Average Influence 72 | 19 77 Maximum Alert Level 1 | . 1 Low Security (%) 99 | 100 99 Level 1 . | . . Level 2 . | . . Level 3 . | . . Level 4 . | . . Level 5 . | . . High Security . | . . Max Security . | . . Squads Dispatched 1 | . 1 Investigation . | . . Extermination . | . . Reinforcement 1 | . 1 Assault . | . . Garrison . | . . Intercept . | . . Construction Impeded . | . . Haulers Reinforced . | . . Stealth | -11 -10 --------- Run | Scr Mat Distress Signals . | . . Communications Jammed . | . . Distress Signals . | . . Times Spotted 28 | . 28 Peak Tracking Total 5 | . 5 Tactical Retreats 4 | . 4 Traps | -11 -10 ------- Run | Scr Mat Traps Triggered 5 | . 5 Indirectly . | . . Trap Hack Attempts . | . . Triggered . | . . Disarmed 6 | . 6 Reprogrammed . | . . Reused . | . . Traps Extracted . | . . Installed . | . . Triggered . | . . Machines | -11 -10 ---------- Run | Scr Mat Machines Disabled . | . . Max in Single Turn . | . . Machines Sabotaged . | . . Garrisons Compromised . | . . Overloaded Fab Kills . | . . Fab Network Shutdowns . | . . Hacking | -11 -10 --------- Run | Scr Mat Machines Accessed 5 | . 5 Terminals 5 | . 5 Fabricators . | . . Repair Stations . | . . Recycling Units . | . . Scanalyzers . | . . Garrison Access . | . . Total Hacks 21 | . 21 Successful 11 | . 11 Failed 10 | . 10 Catastrophic . | . . Database Lockouts . | . . Manual 20 | . 20 Terminals 21 | . 21 Fabricators . | . . Repair Stations . | . . Recycling Units . | . . Scanalyzers . | . . Garrison Access . | . . Terminal Hacks 5 | . 5 Part Schematic 1 | . 1 Prototype ID Bank 1 | . 1 Unreport Threat 1 | . 1 Locate Traps 1 | . 1 Disarm Traps 1 | . 1 Fabricator Hacks . | . . Repair Station Hacks . | . . Recycling Unit Hacks . | . . Scanalyzer . | . . Garrison Access Hacks . | . . Unauthorized Hacks 6 | . 6 Terminals 6 | . 6 Track 1 | . 1 Botnet 4 | . 4 Operators 1 | . 1 Fabricators . | . . Repair Stations . | . . Recycling Units . | . . Scanalyzers . | . . Garrison Access . | . . Data Cores Recovered . | . . Used . | . . Hacking Detections 5 | . 5 Full Trace Events . | . . Feedback Events . | . . Feedback Blocked . | . . Robot Schematics Acquired . | . . Robots Built . | . . Matter . | . . Time . | . . Total Robot Build Rating . | . . Part Schematics Acquired 1 | . 1 Parts Built . | . . Matter . | . . Time . | . . Total Part Build Rating . | . . Parts Repaired . | . . Time . | . . Parts Recycled . | . . Recycled Matter . | . . Retrieved Matter . | . . Retrieved Components . | . . Parts Scanalyzed . | . . Part Schematics Acquired . | . . Parts Damaged . | . . Bothacking | -11 -10 ------------ Run | Scr Mat Used RIF Installer . | . . Robots Hacked . | . . Non-combat . | . . Combat . | . . Robot Hacks Applied . | . . Relay Couplers Released . | . . Robots Rewired . | . . Allies Hacked . | . . Hacks Repelled . | . . Allies | -11 -10 -------- Run | Scr Mat Total Allies . | . . Largest Group . | . . Highest-Rated Group . | . . Highest-Rated Ally . | . . Total Orders . | . . Ally Attacks . | . . Total Damage . | . . Kills . | . . Allies Corrupted . | . . Allies Melted . | . . Intel | -11 -10 ------- Run | Scr Mat Robot Analysis Total . | . . Derelict Logs Recovered . | . . Drone Launches . | . . Drone Recoveries . | . . Exploration | -11 -10 ------------- Run | Scr Mat Turns Passed 1255 | 113 1142 Spaces Moved 558 | 40 518 Core 5 | 5 . Treads 357 | . 357 Legs . | . . Wheels 196 | 35 161 Hover . | . . Flight . | . . Fastest Speed 80 | 80 80 Average Speed 154 | 102 158 Slowest Speed 220 | 200 220 Overloaded Moves . | . . Propulsion Burnouts . | . . Robots Hopped . | . . Cave-ins Triggered . | . . Exploration Rate (%) 39 | 3 76 Regions Visited 1 Branch Regions . Pre-discovered Areas . | . . Known Exits Taken . | . . Unknown Exits Taken 1 | 1 . Scrap Searched . | . . Spaces Dug . | . . Terrain Destroyed . | . . Melee . | . . Projectile . | . . AOE . | . . Actions | -11 -10 --------- Run | Scr Mat Total 782 | 91 691 Wait 48 | 22 26 Move 557 | 39 518 Hop . | . . Pick Up 19 | 2 17 Fast Attach 5 | 3 2 Attach 4 | . 4 Detach . | . . Swap 15 | 4 11 Drop 21 | 7 14 Fire 108 | 14 94 Melee . | . . Ram . | . . Kick . | . . Crush 5 | . 5 Escape Stasis . | . . Rewire . | . . Trap . | . . Miscellaneous . | . . Route ------- -11/Scrapyard -10/Materials (discovered 3 exits: [*Mat] / [*Min x2]) History --------- Turn | Location | Event 8 | -11/Scrapyard | Discovered new exit (range 3) 114 | -11/Scrapyard | Entered Materials 304 | -10/Materials | Build established: Mutant 474 | -10/Materials | Discovered new exit (range 7) 762 | -10/Materials | Discovered new exit (range 14) 1049 | -10/Materials | Core integrity fell below 50% 1125 | -10/Materials | Discovered new exit (range 14) 1227 | -10/Materials | Core integrity fell below 20% 1256 | -10/Materials | Destroyed by G-34 Mercenary with Small Laser Last Messages --------------- 01202_ K-01 Serf cleans the Pressure Siphon. 01204_ Wheel destroyed. 01205_ Particle Gun destroyed. 01206_ K-01 Serf cleans the Pressure Siphon. 01207_ Destroyed Sml. Laser. 01214_ K-01 Serf cleans the Pressure Siphon. 01227_ System corrupted: Lgt. Assault Rifle targeting data glitched. 01227_ G-47 Trooper destroyed. 01227_ K-01 Serf cleans the Pressure Siphon. 01234_ K-01 Serf collects debris. 01245_ Lgt. Assault Rifle destroyed. 01245_ Slammed into G-34 Mercenary. 01246_ Ion Engine destroyed. 01247_ Slammed into G-34 Mercenary. 01249_ 01252_ U-05 Engineer lays Concrete. 01254_ Slammed into G-34 Mercenary. 01254_ G-34 Mercenary destroyed. 01255_ K-01 Serf collects debris. Map ----- +----------------------------------------------------+ | ????##########* ^ #????????? | | %* =!%=! #????????? | | ???########### !/ ! #????????? | | ???# """ # % % #########? | | ???# """"" #%= ^ # # | | #### """"" #=%[ """ + # | | ## """""%+ * """ # """ # | | ""## """ # """ # """"" ? | | T"## * % ##### """ # """"" ?? | | ""## =* #???# # """"" ? | | ## =! % #???# # """ # | | ] ##+#########???# """ + ! # | | ## #???????????# """ # # | | ## #?####??????# """ #########? | | ## #?#!!##?????# ^""" # #?? | | #### ### !#?????# + #?? | | #?????# # """" #?? | | #?????# """ # """" #?? | | #?????# """ # """" #?? | | ###### !!##?????# """ # #?? | | ?????# ####??????# """u ########?? | | ######+####??????# ""#??????? | | # #??????## ^ Y"#??????? | | # #???????# """%g""#??????? | | # #???????# """[=###??????? | | # #???????# ! """@k#????????? | | # !#???????# """*%#????????? | | # #???????# *="#???????? | | # #???????+ T#???????? | | # #???????# """ "#???????? | | #####+#######?????## """ ##???????? | | # #??????# """ #????????? | | # #??????# """ ????????? | | + #?????? ??? ????????? | | #### # !! #??????????? ????????? | | #?# # !! #??????????? ????????? | | #?# + ! #??????????? #???????? | | #?# # #??????????? ##???????? | | #?# # #??????????? ?????????? | | #?# # #??????????? ?????????? | | #?# ######??????????? ?????????? | | #?# #????????????????????????????? | | =#?# ######???????????????????????? | | #?# # #???????????????????????? | | #### < # "" #???????????????????????? | | # T" #???????????????????????? | | # "" #???????????????????????? | | # #???????????????????????? | | + #???????????????????????? | | ######## #???????????????????????? | +----------------------------------------------------+ Best States ------------- Heat Dissipation 25 Energy Generation 10 Energy Capacity 250 Matter Stores 300 Matter Capacity 300 Sight Range 16 Terrain Scan Range 16 Terrain Scan Density 10 Evasion (%) 44 Recoil Reduction 1 Item Schematics ----------------- Hcp. Storage Unit | -10/Materials | Hacked Robot Schematics ------------------ None Fabricated ------------ Nothing Alien Tech Used ----------------- None Achievements -------------- None Challenges ------------ None Game ------ Seed UtilityLaserWarhead Manual? 0 Play Time 00:16:22 Cumulative 223.5 hours Start 2020.06.12 @ 09:30:15 End 2020.06.12 @ 09:42:16 Sessions 1 Manual Loads 0 Difficulty Rogue Special Mode None Game No. 292 Rogue 281 Adventurer 11 Explorer 0 Win Type - Total 0 Types 0/0/0/0/0/0/0 Lore% 53 Gallery% 66 Achievement% 45 Wizard Run 0 Options --------- ASCII 0 Keyboard 1 Movement Numpad Keybinds 0 Fullscreen 1 Font 12/Terminus Map View 83x54 Tactical HUD 1 Map Filters NONE Filters NONE Steam 1 RUN: f073e657-fca3-4a50-b3e0-9dc302ac7975